[Event "42nd GRE-ch Women 2019"]
[Site "Thessaloniki"]
[Date "2019.11.20"]
[Round "1.1"]
[White "Stefanidi, Maria-Anna"]
[Black "Hristodoulaki, Antonia"]
[Result "0-1"]
[ECO "C11"]
[WhiteElo "2012"]
[BlackElo "2054"]
[Annotator "NA RC"]
[PlyCount "164"]
[EventDate "2019.11.20"]
[EventType "tourn"]
[EventCountry "GRE"]
[SourceTitle "playchess.com"]
[Source "ChessBase"]
[SourceQuality "1"]
[TimeControl "40/5400+30:1800+30"]

1. e4 {[%emt 0:00:00]} e6 {[%emt 0:00:00]} 2. d4 {[%emt 0:00:00]} d5 {[%emt 0:00:00]} 3. Nc3 {[%emt 0:00:05]} Nf6 {[%emt 0:00:00]} 4. Bg5 {[%emt 0:01:06]} dxe4 {[%emt 0:00:00]} 5. Nxe4 {[%emt 0:00:45]} Be7 {[%emt 0:00:00]} 6. Bxf6 {[%emt 0:01:37]} gxf6 {[%emt 0:00:04]} 7. Nf3 {[%emt 0:00:36]} f5 {[%emt 0:03:34]} 8. Ng3 {[%emt 0:01:25]} b6 {[%emt 0:14:14]} 9. Qd2 {[%emt 0:01:33]} Bb7 {[%emt 0:04:53]} 10. Ne5 {[%emt 0:03:17]} Bg5 {[%emt 0:03:19]} 11. f4 {[%emt 0:00:23]} Bh6 {[%emt 0:00:34]} 12. O-O-O {[%emt 0:08:15]} Qh4 {[%emt 0:10:26]} 13. Ne2 {[%emt 0:01:27]} Rg8 {[%emt 0:27:34]} 14. Rg1 {[%emt 0:10:43]} Nd7 {[%emt 0:06:42]} 15. Nxd7 {[%emt 0:00:25]} Kxd7 {[%emt 0:00:02]} 16. d5 {[%emt 0:00:12]} exd5 {[%emt 0:00:35]} 17. g3 {[%emt 0:02:20]} Qxh2 {[%emt 0:07:12]} 18. Bg2 {[%emt 0:01:23]} c6 {[%emt 0:01:55]} 19. Qd3 {[%emt 0:00:09]} Rae8 {[%emt 0:05:18]} 20. Bf3 {[%emt 0:03:17]} Qf2 {[%emt 0:03:55]} 21. Qxf5+ {[%emt 0:00:30]} Kd6 {[%emt 0:03:49]} 22. Rgf1 {[%emt 0:03:00]} Qe3+ {[%emt 0:00:16]} 23. Kb1 {[%emt 0:00:06]} Qe6 {[%emt 0:00:46]} 24. Nd4 {[%emt 0:02:18]} Qg6 {[%emt 0:05:40]} 25. Bh5 {[%emt 0:00:16]} Qg7 {[%emt 0:00:40]} 26. Qxf7 {[%emt 0:00:55]} Bc8 {[%emt 0:00:42]} 27. Qxg7 {[%emt 0:06:46]} Bxg7 {[%emt 0:00:07]} 28. Bxe8 {[%emt 0:00:05]} Rxe8 {[%emt 0:00:04]} 29. f5 {[%emt 0:00:33]} Bxd4 {[%emt 0:00:48]} 30. Rxd4 {[%emt 0:01:31]} Bxf5 {[%emt 0:00:08]} 31. Rdf4 {[%emt 0:00:27]} Bg6 {[%emt 0:00:14]} 32. Kc1 {[%emt 0:00:55]} Re3 {[%emt 0:01:19]} 33. R1f3 {[%emt 0:01:49]} Re2 {[%emt 0:00:50]} 34. Rf2 {[%emt 0:00:06]} Re3 {[%emt 0:00:04]} 35. R4f3 {[%emt 0:00:05]} Re1+ {[%emt 0:01:07]} 36. Kd2 {[%emt 0:00:07]} Re7 {[%emt 0:00:15]} 37. Rf8 {[%emt 0:00:26]} Kc5 {[%emt 0:00:50]} 38. R8f6 {[%emt 0:01:46]} Re5 {[%emt 0:00:31]} 39. c3 {[%emt 0:02:18]} a5 {[%emt 0:00:22]} 40. R2f3 {[%emt 0:00:00]} Be4 {[%emt 0:00:00]} 41. Re3 {[%emt 0:14:03]} a4 {[%emt 0:04:54]} 42. Rh6 {[%emt 0:06:38]} Rf5 {[%emt 0:01:02]} 43. Ke2 {[%emt 0:07:41]} Rf7 {[%emt 0:01:25]} 44. b4+ {[%emt 0:04:13]} axb3 {[%emt 0:04:29]} 45. axb3 {[%emt 0:00:07]} Ra7 {[%emt 0:00:47]} 46. Kf2 {[%emt 0:09:43]} Rf7+ {[%emt 0:02:06]} 47. Kg1 {[%emt 0:00:13]} Ra7 {[%emt 0:00:48]} 48. g4 {[%emt 0:04:57]} Rg7 {[%emt 0:01:59]} 49. Rg3 {[%emt 0:00:13]} Bg6 {[%emt 0:00:23]} 50. Rh2 {[%emt 0:00:45]} Ra7 {[%emt 0:00:26]} 51. Rd2 {[%emt 0:00:21]} Ra3 {[%emt 0:01:30]} 52. b4+ {[%emt 0:01:49]} Kd6 {[%emt 0:00:06]} 53. Rf3 {[%emt 0:02:16]} Ke5 {[%emt 0:00:39]} 54. Re2+ {[%emt 0:05:47]} Be4 {[%emt 0:00:42]} 55. Kf2 {[%emt 0:00:37]} Ra7 {[%emt 0:01:57]} 56. Rf5+ {[%emt 0:00:20]} Ke6 {[%emt 0:01:12]} 57. Kg3 {[%emt 0:05:21]} Ra3 {[%emt 0:06:36]} 58. Re3 {[%emt 0:00:23]} c5 {[%emt 0:01:38]} 59. bxc5 {[%emt 0:08:49]} bxc5 {[%emt 0:00:01]} 60. Kf4 {[%emt 0:00:10]} c4 {[%emt 0:01:53]} 61. g5 {[%emt 0:02:50]} Ra1 {[%emt 0:02:35]} 62. Rf6+ {[%emt 0:00:37]} Kd7 {[%emt 0:00:09]} 63. Rf7+ {[%emt 0:01:54]} Kd6 {[%emt 0:00:39]} 64. Rf6+ {[%emt 0:04:20]} Kd7 {[%emt 0:00:34]} 65. Ke5 {[%emt 0:00:59]} Rg1 {[%emt 0:00:32]} 66. Kf4 {[%emt 0:01:49]} Rf1+ {[%emt 0:00:49]} 67. Kg4 {[%emt 0:00:15]} Rxf6 {[%emt 0:01:28]} 68. gxf6 {[%emt 0:01:17]} Ke6 {[%emt 0:00:02]} 69. Kg5 {[%emt 0:00:37]} h6+ {[%emt 0:00:06]} 70. Kxh6 {[%emt 0:00:22]} Kxf6 {[%emt 0:00:02]} 71. Rg3 {[%emt 0:01:35]} Kf5 {[%emt 0:00:35]} 72. Kh5 {[%emt 0:00:21]} Kf4 {[%emt 0:01:09]} 73. Kh4 {[%emt 0:00:07]} Bf5 {[%emt 0:00:36]} 74. Rg1 {[%emt 0:00:35]} Ke3 {[%emt 0:00:32]} 75. Rd1 {[%emt 0:00:16]} Bd3 {[%emt 0:00:13]} 76. Kg3 {[%emt 0:01:14]} Ke2 {[%emt 0:00:16]} 77. Ra1 {[%emt 0:00:09]} Kd2 {[%emt 0:00:37]} 78. Ra3 {[%emt 0:01:01]} Kc2 {[%emt 0:00:25]} 79. Kf4 {[%emt 0:00:13]} Kb2 {[%emt 0:00:08]} 80. Ra5 {[%emt 0:00:13]} Be4 {[%emt 0:00:06]} 81. Ke5 {[%emt 0:01:12]} Kxc3 {[%emt 0:00:12]} 82. Ra3+ {[%emt 0:00:30]} Kb2 {[%emt 0:00:12]} 0-1

[Event "42nd GRE-ch Women 2019"]
[Site "Thessaloniki"]
[Date "2019.11.20"]
[Round "1.2"]
[White "Makka, Evanthia"]
[Black "Makka, Ioulia"]
[Result "1/2-1/2"]
[ECO "C01"]
[WhiteElo "2059"]
[BlackElo "2048"]
[Annotator "NA RC"]
[PlyCount "61"]
[EventDate "2019.11.20"]
[EventType "tourn"]
[EventCountry "GRE"]
[SourceTitle "playchess.com"]
[Source "ChessBase"]
[SourceQuality "1"]
[TimeControl "40/5400+30:1800+30"]

1. e4 {[%emt 0:00:00]} e6 {[%emt 0:00:03]} 2. d4 {[%emt 0:00:00]} d5 {[%emt 0:00:05]} 3. exd5 {[%emt 0:00:00]} exd5 {[%emt 0:00:00]} 4. Bd3 {[%emt 0:00:00]} Bd6 {[%emt 0:00:00]} 5. Nf3 {[%emt 0:00:11]} Nf6 {[%emt 0:00:00]} 6. c3 {[%emt 0:00:02]} c6 {[%emt 0:00:00]} 7. Bg5 {[%emt 0:00:28]} O-O {[%emt 0:00:57]} 8. O-O {[%emt 0:00:08]} Bg4 {[%emt 0:01:03]} 9. Nbd2 {[%emt 0:00:07]} Nbd7 {[%emt 0:00:00]} 10. Bh4 {[%emt 0:00:21]} Qc7 {[%emt 0:00:14]} 11. Bg3 {[%emt 0:01:43]} Bh5 {[%emt 0:00:17]} 12. Bxd6 {[%emt 0:00:20]} Qxd6 {[%emt 0:00:06]} 13. Qc2 {[%emt 0:00:05]} Bg6 {[%emt 0:00:12]} 14. Rfe1 {[%emt 0:00:08]} Rfe8 {[%emt 0:00:23]} 15. Bxg6 {[%emt 0:00:47]} hxg6 {[%emt 0:00:04]} 16. Rxe8+ {[%emt 0:00:23]} Rxe8 {[%emt 0:00:05]} 17. Re1 {[%emt 0:00:10]} Rxe1+ {[%emt 0:00:43]} 18. Nxe1 {[%emt 0:00:04]} Nf8 {[%emt 0:00:40]} 19. Qd3 {[%emt 0:00:18]} Qe7 {[%emt 0:00:18]} 20. Kf1 {[%emt 0:01:02]} N8d7 {[%emt 0:00:36]} 21. Qe2 {[%emt 0:00:13]} Qxe2+ {[%emt 0:00:09]} 22. Kxe2 {[%emt 0:00:03]} Kf8 {[%emt 0:00:14]} 23. Nd3 {[%emt 0:00:17]} Ke7 {[%emt 0:00:17]} 24. h3 {[%emt 0:00:08]} Ne8 {[%emt 0:00:18]} 25. h4 {[%emt 0:00:14]} Nd6 {[%emt 0:00:35]} 26. g3 {[%emt 0:00:06]} Ne8 {[%emt 0:00:57]} 27. Nf3 {[%emt 0:00:13]} Nef6 {[%emt 0:00:37]} 28. Nd2 {[%emt 0:00:21]} Kd6 {[%emt 0:00:29]} 29. Ke3 {[%emt 0:00:16]} Ke7 {[%emt 0:01:18]} 30. Ke2 {[%emt 0:00:04]} Kd6 {[%emt 0:00:00]} 31. Ke3 {[%emt 0:00:05]} 1/2-1/2

[Event "42nd GRE-ch Women 2019"]
[Site "Thessaloniki"]
[Date "2019.11.20"]
[Round "1.3"]
[White "Vozinaki, Anthi - Maria"]
[Black "Serefidou, Despina"]
[Result "0-1"]
[ECO "C55"]
[WhiteElo "1878"]
[BlackElo "1899"]
[Annotator "NA RC"]
[PlyCount "72"]
[EventDate "2019.11.20"]
[EventType "tourn"]
[EventCountry "GRE"]
[SourceTitle "playchess.com"]
[Source "ChessBase"]
[SourceQuality "1"]
[TimeControl "40/5400+30:1800+30"]

1. e4 {[%emt 0:00:00]} e5 {[%emt 0:00:00]} 2. Nf3 {[%emt 0:00:00]} Nc6 {[%emt 0:00:00]} 3. Bc4 {[%emt 0:00:00]} Nf6 {[%emt 0:00:22]} 4. O-O {[%emt 0:05:28]} Be7 {[%emt 0:15:38]} 5. d4 {[%emt 0:08:19]} Nxe4 {[%emt 0:26:43]} 6. dxe5 {[%emt 0:13:30]} O-O {[%emt 0:03:12]} 7. Bf4 {[%emt 0:10:45]} d6 {[%emt 0:14:05]} 8. Bd5 {[%emt 0:09:11]} Nc5 {[%emt 0:05:26]} 9. exd6 {[%emt 0:11:45]} Bxd6 {[%emt 0:00:59]} 10. Bg5 {[%emt 0:02:19]} Qd7 {[%emt 0:02:17]} 11. Nc3 {[%emt 0:01:54]} h6 {[%emt 0:01:36]} 12. Be3 {[%emt 0:02:18]} Ne7 {[%emt 0:04:39]} 13. Re1 {[%emt 0:07:28]} Nxd5 {[%emt 0:01:28]} 14. Qxd5 {[%emt 0:01:11]} Na4 {[%emt 0:05:54]} 15. Qb3 {[%emt 0:09:23]} Nxc3 {[%emt 0:00:25]} 16. Qxc3 {[%emt 0:00:08]} Qg4 {[%emt 0:14:01]} 17. Bc5 {[%emt 0:03:55]} Bxc5 {[%emt 0:00:54]} 18. Qxc5 {[%emt 0:00:04]} c6 {[%emt 0:00:41]} 19. Re7 {[%emt 0:01:05]} Qg6 {[%emt 0:00:29]} 20. Ne5 {[%emt 0:04:27]} Qg5 {[%emt 0:00:30]} 21. Re1 {[%emt 0:01:20]} Bh3 {[%emt 0:00:24]} 22. g3 {[%emt 0:00:13]} b6 {[%emt 0:01:00]} 23. Qd6 {[%emt 0:02:12]} Rad8 {[%emt 0:00:13]} 24. Qc7 {[%emt 0:04:05]} Be6 {[%emt 0:00:21]} 25. f4 {[%emt 0:00:26]} Qf6 {[%emt 0:00:28]} 26. Qxa7 {[%emt 0:00:42]} Ra8 {[%emt 0:00:32]} 27. Qc7 {[%emt 0:00:30]} Rxa2 {[%emt 0:00:38]} 28. Nxc6 {[%emt 0:00:45]} Rxb2 {[%emt 0:00:23]} 29. Ne5 {[%emt 0:00:31]} Rc8 {[%emt 0:00:17]} 30. Qb7 {[%emt 0:00:23]} Rcxc2 {[%emt 0:00:44]} 31. Re8+ {[%emt 0:00:22]} Kh7 {[%emt 0:00:02]} 32. Qa8 {[%emt 0:00:29]} g6 {[%emt 0:00:55]} 33. Rd1 {[%emt 0:00:42]} Bh3 {[%emt 0:00:25]} 34. Nd3 {[%emt 0:00:39]} Rg2+ {[%emt 0:00:13]} 35. Kf1 {[%emt 0:00:17]} Rxh2+ {[%emt 0:00:40]} 36. Ke1 {[%emt 0:00:05]} Qc3+ {[%emt 0:00:16]} 0-1

[Event "42nd GRE-ch Women 2019"]
[Site "Thessaloniki"]
[Date "2019.11.20"]
[Round "1.5"]
[White "Grapsa, Georgia"]
[Black "Koutsidi, Amalia"]
[Result "1-0"]
[ECO "D34"]
[WhiteElo "2026"]
[BlackElo "1724"]
[Annotator "NA RC"]
[PlyCount "51"]
[EventDate "2019.11.20"]
[EventType "tourn"]
[EventCountry "GRE"]
[SourceTitle "playchess.com"]
[Source "ChessBase"]
[SourceQuality "1"]
[TimeControl "40/5400+30:1800+30"]

1. d4 {[%emt 0:00:00]} Nf6 {[%emt 0:00:00]} 2. c4 {[%emt 0:00:00]} e6 {[%emt 0:00:00]} 3. g3 {[%emt 0:00:00]} d5 {[%emt 0:00:00]} 4. Nf3 {[%emt 0:00:00]} Be7 {[%emt 0:00:05]} 5. Bg2 {[%emt 0:00:00]} O-O {[%emt 0:00:10]} 6. O-O {[%emt 0:00:10]} c5 {[%emt 0:00:09]} 7. cxd5 {[%emt 0:00:11]} exd5 {[%emt 0:00:09]} 8. Nc3 {[%emt 0:01:43]} Nc6 {[%emt 0:00:32]} 9. dxc5 {[%emt 0:00:33]} Bxc5 {[%emt 0:04:55]} 10. Bg5 {[%emt 0:02:05]} Be6 {[%emt 0:15:21]} 11. Rc1 {[%emt 0:06:03]} Be7 {[%emt 0:04:27]} 12. Nd4 {[%emt 0:05:58]} h6 {[%emt 0:09:44]} 13. Bf4 {[%emt 0:13:07]} Qd7 {[%emt 0:25:43]} 14. Nxe6 {[%emt 0:07:45]} fxe6 {[%emt 0:02:03]} 15. e4 {[%emt 0:10:01]} d4 {[%emt 0:06:54]} 16. e5 {[%emt 0:02:22]} Ne8 {[%emt 0:05:04]} 17. Ne4 {[%emt 0:17:44]} g5 {[%emt 0:03:36]} 18. Bd2 {[%emt 0:01:58]} Nxe5 {[%emt 0:01:15]} 19. Qh5 {[%emt 0:06:51]} Kg7 {[%emt 0:07:08]} 20. f4 {[%emt 0:02:45]} Ng6 {[%emt 0:07:11]} 21. fxg5 {[%emt 0:00:58]} hxg5 {[%emt 0:00:59]} 22. Nxg5 {[%emt 0:01:20]} Nf6 {[%emt 0:04:06]} 23. Rxf6 {[%emt 0:02:01]} Rxf6 {[%emt 0:00:07]} 24. Qh7+ {[%emt 0:00:13]} Kf8 {[%emt 0:00:16]} 25. Ne4 {[%emt 0:06:46]} Qe8 {[%emt 0:01:22]} 26. Bh6# {[%emt 0:00:41]} 1-0

[Event "42nd GRE-ch Women 2019"]
[Site "Thessaloniki"]
[Date "2019.11.21"]
[Round "2.1"]
[White "Hristodoulaki, Antonia"]
[Black "Koutsidi, Amalia"]
[Result "1/2-1/2"]
[ECO "B22"]
[WhiteElo "2054"]
[BlackElo "1724"]
[Annotator "NA RC"]
[PlyCount "119"]
[EventDate "2019.11.20"]
[EventType "tourn"]
[EventCountry "GRE"]
[SourceTitle "playchess.com"]
[Source "ChessBase"]
[SourceQuality "1"]
[TimeControl "40/5400+30:1800+30"]

1. e4 {[%emt 0:00:05]} c5 {[%emt 0:00:00]} 2. c3 {[%emt 0:00:05]} d6 {[%emt 0:04:29]} 3. d4 {[%emt 0:00:20]} cxd4 {[%emt 0:09:08]} 4. cxd4 {[%emt 0:00:31]} g6 {[%emt 0:01:25]} 5. Nf3 {[%emt 0:07:14]} Bg7 {[%emt 0:01:33]} 6. Bc4 {[%emt 0:07:37]} Nf6 {[%emt 0:04:00]} 7. Nc3 {[%emt 0:01:30]} O-O {[%emt 0:02:26]} 8. Qe2 {[%emt 0:06:00]} Nc6 {[%emt 0:10:19]} 9. h3 {[%emt 0:06:18]} a6 {[%emt 0:15:14]} 10. e5 {[%emt 0:07:41]} dxe5 {[%emt 0:06:08]} 11. dxe5 {[%emt 0:00:28]} Ne8 {[%emt 0:00:33]} 12. O-O {[%emt 0:02:25]} Nd4 {[%emt 0:06:57]} 13. Nxd4 {[%emt 0:06:12]} Qxd4 {[%emt 0:00:19]} 14. Re1 {[%emt 0:07:29]} Nc7 {[%emt 0:05:30]} 15. Bb3 {[%emt 0:03:25]} Be6 {[%emt 0:01:28]} 16. Bxe6 {[%emt 0:11:53]} Nxe6 {[%emt 0:00:28]} 17. Qf3 {[%emt 0:02:23]} Qb4 {[%emt 0:11:52]} 18. Re4 {[%emt 0:06:39]} Qb6 {[%emt 0:04:11]} 19. Nd5 {[%emt 0:01:33]} Qc5 {[%emt 0:00:13]} 20. Rb4 {[%emt 0:06:29]} Rad8 {[%emt 0:03:10]} 21. Nxe7+ {[%emt 0:01:21]} Qxe7 {[%emt 0:00:06]} 22. Rxb7 {[%emt 0:00:09]} Rd7 {[%emt 0:00:40]} 23. Rb6 {[%emt 0:03:11]} Nd4 {[%emt 0:01:02]} 24. Qg4 {[%emt 0:02:23]} Bxe5 {[%emt 0:02:26]} 25. Bg5 {[%emt 0:01:15]} Qc5 {[%emt 0:03:44]} 26. Rxa6 {[%emt 0:02:06]} Qb5 {[%emt 0:01:22]} 27. Ra3 {[%emt 0:02:36]} Qxb2 {[%emt 0:01:15]} 28. Re1 {[%emt 0:00:34]} Qxa3 {[%emt 0:01:17]} 29. Qxd7 {[%emt 0:01:37]} Qd6 {[%emt 0:00:44]} 30. Qa7 {[%emt 0:02:25]} Nc6 {[%emt 0:01:30]} 31. Qe3 {[%emt 0:00:03]} Bg7 {[%emt 0:00:27]} 32. a4 {[%emt 0:00:21]} Qd4 {[%emt 0:00:35]} 33. Qb3 {[%emt 0:01:12]} Qb4 {[%emt 0:00:36]} 34. Qxb4 {[%emt 0:00:39]} Nxb4 {[%emt 0:00:04]} 35. Be7 {[%emt 0:00:06]} Rb8 {[%emt 0:00:06]} 36. Bd6 {[%emt 0:00:25]} Bc3 {[%emt 0:01:01]} 37. Re3 {[%emt 0:00:45]} Rc8 {[%emt 0:01:02]} 38. Rxc3 {[%emt 0:00:40]} Rxc3 {[%emt 0:00:04]} 39. Bxb4 {[%emt 0:00:06]} Rc4 {[%emt 0:00:19]} 40. Bd2 {[%emt 0:00:00]} Rxa4 {[%emt 0:00:00]} 41. Kh2 {[%emt 0:00:58]} f5 {[%emt 0:01:26]} 42. Kg3 {[%emt 0:00:16]} Kf7 {[%emt 0:00:07]} 43. Bc1 {[%emt 0:02:34]} Ke6 {[%emt 0:00:37]} 44. Kf3 {[%emt 0:00:35]} Re4 {[%emt 0:01:44]} 45. Bh6 {[%emt 0:00:38]} Kd5 {[%emt 0:00:28]} 46. Be3 {[%emt 0:01:17]} Kc4 {[%emt 0:00:38]} 47. Bd2 {[%emt 0:01:05]} Kd3 {[%emt 0:00:19]} 48. Bg5 {[%emt 0:00:22]} Kc2 {[%emt 0:00:47]} 49. Bh6 {[%emt 0:01:18]} Kd1 {[%emt 0:03:35]} 50. Be3 {[%emt 0:01:06]} Ke1 {[%emt 0:00:39]} 51. g3 {[%emt 0:00:42]} Kf1 {[%emt 0:04:41]} 52. h4 {[%emt 0:00:34]} Ra4 {[%emt 0:03:11]} 53. Bd2 {[%emt 0:02:23]} Ra3+ {[%emt 0:01:24]} 54. Be3 {[%emt 0:00:18]} h6 {[%emt 0:12:51]} 55. g4 {[%emt 0:01:25]} fxg4+ {[%emt 0:01:30]} 56. Kxg4 {[%emt 0:00:02]} Ke2 {[%emt 0:01:25]} 57. Bxh6 {[%emt 0:00:33]} Kxf2 {[%emt 0:00:12]} 58. Kg5 {[%emt 0:01:07]} Ra6 {[%emt 0:00:45]} 59. Kg4 {[%emt 0:00:52]} Ke2 {[%emt 0:01:03]} 60. Bg7 {[%emt 0:00:31]} 1/2-1/2

[Event "42nd GRE-ch Women 2019"]
[Site "Thessaloniki"]
[Date "2019.11.21"]
[Round "2.4"]
[White "Makka, Ioulia"]
[Black "Vozinaki, Anthi - Maria"]
[Result "1/2-1/2"]
[ECO "B83"]
[WhiteElo "2048"]
[BlackElo "1878"]
[Annotator "NA RC"]
[PlyCount "132"]
[EventDate "2019.11.20"]
[EventType "tourn"]
[EventCountry "GRE"]
[SourceTitle "playchess.com"]
[Source "ChessBase"]
[SourceQuality "1"]
[TimeControl "40/5400+30:1800+30"]

1. e4 {[%emt 0:00:00]} c5 {[%emt 0:00:00]} 2. Nf3 {[%emt 0:00:00]} e6 {[%emt 0:00:00]} 3. d4 {[%emt 0:00:00]} cxd4 {[%emt 0:00:00]} 4. Nxd4 {[%emt 0:00:03]} Nf6 {[%emt 0:00:00]} 5. Nc3 {[%emt 0:00:27]} d6 {[%emt 0:00:00]} 6. Be2 {[%emt 0:00:55]} Be7 {[%emt 0:00:12]} 7. O-O {[%emt 0:00:46]} O-O {[%emt 0:00:40]} 8. f4 {[%emt 0:02:44]} Nc6 {[%emt 0:00:51]} 9. Kh1 {[%emt 0:01:52]} a6 {[%emt 0:04:59]} 10. a4 {[%emt 0:19:24]} Qc7 {[%emt 0:00:46]} 11. Be3 {[%emt 0:05:25]} Re8 {[%emt 0:00:59]} 12. Bf3 {[%emt 0:16:58]} Bf8 {[%emt 0:04:03]} 13. Nxc6 {[%emt 0:09:06]} bxc6 {[%emt 0:00:22]} 14. a5 {[%emt 0:00:37]} Nd7 {[%emt 0:15:56]} 15. Qd2 {[%emt 0:02:19]} Rb8 {[%emt 0:03:36]} 16. Na4 {[%emt 0:02:09]} c5 {[%emt 0:02:39]} 17. c4 {[%emt 0:02:31]} Bb7 {[%emt 0:12:41]} 18. Qc2 {[%emt 0:04:05]} d5 {[%emt 0:14:05]} 19. Bd2 {[%emt 0:08:59]} d4 {[%emt 0:06:20]} 20. e5 {[%emt 0:01:30]} f6 {[%emt 0:04:11]} 21. exf6 {[%emt 0:01:13]} Nxf6 {[%emt 0:00:57]} 22. Qd3 Bd6 23. Nb6 Bxf3 24. Rxf3 Qc6 25. Kg1 Rb7 26. Rh3 g6 27. Rf3 Ne4 28. Be1 Rf8 29. Bg3 Nxg3 30. hxg3 Bc7 31. Ra3 Bxb6 32. axb6 Rxb6 33. b3 Rd8 34. Rf2 Qd6 35. Re2 Rd7 36. Re5 {[%emt 0:25:47]} Rdb7 37. g4 Qb8 38. Qe4 Qd6 {[%emt 0:34:51]} 39. Qd3 Qb8 40. Qe4 Qd6 41. Qd3 Rb8 42. g3 {[%emt 0:15:26]} a5 43. Kf2 Qc6 44. Qe4 Qxe4 {[%emt 0:24:24]} 45. Rxe4 Rxb3 46. Rxa5 {[%emt 0:11:53]} d3 47. Re1 Rb2+ 48. Ke3 d2 49. Rd1 R8b3+ 50. Ke4 Rxg3 51. g5 Rc3 52. Ke5 Kf7 53. Ra7+ Ke8 54. Kxe6 Re3+ 55. Kd6 Rd3+ 56. Kxc5 Rc2 57. Rxh7 Re3 58. Rh2 Re4 59. Rdxd2 Rexc4+ 60. Kd5 Rxd2+ 61. Rxd2 Rxf4 62. Ke6 Rf5 63. Ra2 Kf8 64. Rg2 Kg7 65. Rg1 Rf2 66. Ke5 Rf5+ 1/2-1/2

[Event "42nd GRE-ch Women 2019"]
[Site "Thessaloniki"]
[Date "2019.11.21"]
[Round "2.5"]
[White "Stefanidi, Maria-Anna"]
[Black "Makka, Evanthia"]
[Result "0-1"]
[ECO "B15"]
[WhiteElo "2012"]
[BlackElo "2059"]
[Annotator "NA RC"]
[PlyCount "98"]
[EventDate "2019.11.20"]
[EventType "tourn"]
[EventCountry "GRE"]
[SourceTitle "playchess.com"]
[Source "ChessBase"]
[SourceQuality "1"]
[TimeControl "40/5400+30:1800+30"]

1. e4 {[%emt 0:02:58]} c6 {[%emt 0:00:00]} 2. d4 {[%emt 0:00:39]} d5 {[%emt 0:00:00]} 3. Nc3 {[%emt 0:00:08]} dxe4 {[%emt 0:00:03]} 4. Nxe4 {[%emt 0:00:05]} Nf6 {[%emt 0:01:14]} 5. Nxf6+ {[%emt 0:05:47]} exf6 {[%emt 0:00:07]} 6. Nf3 {[%emt 0:01:10]} Bd6 {[%emt 0:02:33]} 7. Be3 {[%emt 0:02:37]} Qb6 {[%emt 0:11:56]} 8. Qc1 {[%emt 0:02:41]} O-O {[%emt 0:02:21]} 9. Be2 {[%emt 0:00:45]} Re8 {[%emt 0:09:31]} 10. O-O {[%emt 0:01:11]} Qc7 {[%emt 0:00:42]} 11. c4 {[%emt 0:04:16]} Bg4 {[%emt 0:08:06]} 12. h3 {[%emt 0:01:48]} Be6 {[%emt 0:00:50]} 13. Qd2 {[%emt 0:04:52]} Qc8 {[%emt 0:05:40]} 14. Rfe1 {[%emt 0:12:56]} a5 {[%emt 0:23:42]} 15. a3 {[%emt 0:00:49]} Na6 {[%emt 0:01:23]} 16. Rac1 {[%emt 0:02:00]} Qd7 {[%emt 0:08:25]} 17. Bf1 {[%emt 0:11:13]} Nc7 {[%emt 0:03:16]} 18. Red1 {[%emt 0:01:36]} Bf8 {[%emt 0:10:24]} 19. Bf4 {[%emt 0:07:37]} Red8 {[%emt 0:04:05]} 20. Qe3 {[%emt 0:04:04]} Ne8 {[%emt 0:01:27]} 21. Bd3 {[%emt 0:03:33]} Bf5 {[%emt 0:01:55]} 22. Be2 {[%emt 0:05:46]} g5 {[%emt 0:01:06]} 23. Bg3 {[%emt 0:02:50]} Bg6 {[%emt 0:00:08]} 24. Nh2 {[%emt 0:00:59]} h5 {[%emt 0:00:55]} 25. h4 {[%emt 0:05:16]} g4 {[%emt 0:01:33]} 26. f3 {[%emt 0:02:41]} f5 {[%emt 0:00:12]} 27. Bf4 {[%emt 0:00:52]} Ng7 {[%emt 0:00:39]} 28. Bg5 {[%emt 0:00:56]} Re8 {[%emt 0:00:25]} 29. Qf2 {[%emt 0:00:32]} Ne6 {[%emt 0:00:24]} 30. Bf6 {[%emt 0:02:14]} Bh6 {[%emt 0:00:18]} 31. Rc3 {[%emt 0:02:30]} Nf4 {[%emt 0:01:00]} 32. Bf1 {[%emt 0:00:43]} Qd6 {[%emt 0:00:52]} 33. fxg4 {[%emt 0:03:32]} fxg4 {[%emt 0:00:00]} 34. Bg5 {[%emt 0:00:23]} Bxg5 {[%emt 0:00:06]} 35. hxg5 {[%emt 0:00:05]} Re7 {[%emt 0:01:01]} 36. d5 {[%emt 0:01:58]} cxd5 {[%emt 0:00:41]} 37. g3 {[%emt 0:00:52]} Ne6 {[%emt 0:00:30]} 38. Rxd5 {[%emt 0:00:08]} Qc7 {[%emt 0:00:23]} 39. Bg2 {[%emt 0:01:37]} Rae8 {[%emt 0:00:32]} 40. Nf1 {[%emt 0:00:00]} Ng7 {[%emt 0:00:00]} 41. Rd2 {[%emt 0:08:55]} Re1 {[%emt 0:08:14]} 42. Bd5 {[%emt 0:08:39]} Nf5 {[%emt 0:02:37]} 43. Kg2 {[%emt 0:00:44]} R8e5 {[%emt 0:04:39]} 44. Rb3 {[%emt 0:03:18]} Qe7 {[%emt 0:05:26]} 45. Rxb7 {[%emt 0:00:53]} Qxg5 {[%emt 0:00:22]} 46. Qf4 {[%emt 0:08:18]} Qf6 {[%emt 0:08:33]} 47. Rf2 {[%emt 0:01:56]} R5e2 {[%emt 0:00:52]} 48. c5 {[%emt 0:02:51]} Rxf2+ {[%emt 0:00:40]} 49. Kxf2 {[%emt 0:00:06]} Rxf1+ {[%emt 0:00:20]} 0-1

[Event "42nd GRE-ch Women 2019"]
[Site "Thessaloniki"]
[Date "2019.11.22"]
[Round "3.1"]
[White "Makka, Evanthia"]
[Black "Hristodoulaki, Antonia"]
[Result "0-1"]
[ECO "A04"]
[WhiteElo "2059"]
[BlackElo "2054"]
[Annotator "NA"]
[PlyCount "58"]
[EventDate "2019.11.20"]
[EventType "tourn"]
[EventCountry "GRE"]
[SourceTitle "playchess.com"]
[Source "ChessBase"]
[SourceQuality "1"]
[TimeControl "40/5400+30:1800+30"]

1. Nf3 {[%emt 0:01:34]} e6 {[%emt 0:00:00]} 2. g3 {[%emt 0:01:32]} f5 {[%emt 0:00:00]} 3. Bg2 {[%emt 0:07:43]} Nf6 {[%emt 0:00:29]} 4. d3 {[%emt 0:04:51]} Be7 {[%emt 0:00:49]} 5. O-O {[%emt 0:03:12]} O-O {[%emt 0:00:18]} 6. c4 {[%emt 0:08:10]} d6 {[%emt 0:09:08]} 7. Nc3 {[%emt 0:03:17]} e5 {[%emt 0:04:39]} 8. Ne1 {[%emt 0:14:26]} c6 {[%emt 0:13:30]} 9. f4 {[%emt 0:02:01]} exf4 {[%emt 0:10:35]} 10. Rxf4 {[%emt 0:04:10]} Ng4 {[%emt 0:08:04]} 11. h3 {[%emt 0:08:46]} Ne5 {[%emt 0:02:11]} 12. Rf1 {[%emt 0:01:53]} Nbd7 {[%emt 0:08:51]} 13. b3 {[%emt 0:04:39]} Nf6 {[%emt 0:02:22]} 14. d4 {[%emt 0:08:24]} Ng6 {[%emt 0:00:55]} 15. d5 {[%emt 0:03:44]} c5 {[%emt 0:00:37]} 16. Nd3 {[%emt 0:00:08]} Nh5 {[%emt 0:02:00]} 17. Kh2 {[%emt 0:01:23]} Bf6 {[%emt 0:05:40]} 18. Bb2 {[%emt 0:01:57]} f4 {[%emt 0:06:56]} 19. Ne4 {[%emt 0:05:36]} fxg3+ {[%emt 0:02:24]} 20. Kh1 {[%emt 0:00:23]} Bxb2 {[%emt 0:02:29]} 21. Nxb2 {[%emt 0:00:05]} Bxh3 {[%emt 0:06:07]} 22. Rxf8+ {[%emt 0:05:19]} Nxf8 {[%emt 0:00:07]} 23. Bxh3 {[%emt 0:02:23]} Qh4 {[%emt 0:00:08]} 24. Qf1 {[%emt 0:00:44]} Qxe4+ {[%emt 0:00:25]} 25. Qg2 {[%emt 0:00:14]} Qh4 {[%emt 0:00:22]} 26. e3 {[%emt 0:01:27]} Re8 {[%emt 0:00:36]} 27. Nd1 {[%emt 0:02:40]} g5 {[%emt 0:00:20]} 28. Kg1 {[%emt 0:00:37]} g4 {[%emt 0:01:19]} 29. Bxg4 {[%emt 0:00:11]} Qxg4 {[%emt 0:00:06]} 0-1